bitfinex/quotes_ETHUSD_20240716
["timestamp","ask_amount","ask_price","bid_price","bid_amount"]
[1721155982339,2.88601,3465.0,3464.3,2.88653]
[1721155982494,2.88601,3465.0,3464.4,2.88648]
[1721155982666,1.81133358,3465.4,3464.5,5.5321]
[1721155982866,5.11322251,3465.7,3464.7,2.88618]
[1721155982867,2.88559,3465.5,3464.7,2.88618]
[1721155983160,4.81133358,3465.7,3464.6,0.841866]
[1721155983161,1.81133358,3465.7,3464.6,0.841866]
[1721155983427,1.81133358,3465.9,3465.7,2.88541]
[1721155983619,5.38105409,3466.5,3465.7,2.88536]
[1721155983620,1.81133358,3466.3,3465.7,2.88536]
[1721155983763,2.88477,3466.5,3465.7,2.88536]
[1721155983977,2.88492,3466.3,3465.5,5.37067]
[1721155984290,2.88492,3466.3,3465.5,2.88557]
[1721155984665,5.35571,3466.2,3465.3,2.88573]
[1721155984971,2.88542,3465.7,3464.4,5.18329]
[1721155985195,2.4707,3465.4,3464.2,2.8866]
[1721155985487,2.886,3465.0,3464.3,2.88658]
[1721155985593,2.886,3465.0,3464.0,2.88681]
[1721155985594,2.88618,3464.8,3463.9,5.18366]
[1721155985988,2.88618,3464.8,3464.0,2.88682]
[1721155987003,2.88626,3464.7,3464.0,2.88682]
[1721155987210,2.88626,3464.7,3463.9,2.2968]
[1721155987509,2.88626,3464.7,3463.9,3.103887]
[1721155987713,2.88681,3464.1,3463.1,2.3502]
[1721155988017,2.88685,3464.0,3463.1,5.23773]
[1721155988300,2.88681,3464.1,3463.3,2.8874]
[1721155988660,2.88659,3464.3,3463.3,2.8874]
[1721155988661,2.88683,3464.0,3463.3,2.8874]
[1721155988887,2.88683,3464.0,3463.2,2.88749]
[1721155989102,2.88683,3464.0,3463.0,2.88763]
[1721155989103,2.88698,3463.9,3463.0,2.88763]
[1721155989288,2.88701,3463.8,3462.9,2.88774]
[1721155989504,2.3431,3464.3,3462.6,2.88797]
[1721155989505,2.88727,3463.5,3462.6,2.88797]
[1721155989877,2.88727,3463.5,3462.7,2.88791]
[1721155990078,2.88727,3463.5,3462.7,3.696596]
[1721155990624,2.88727,3463.5,3462.5,2.88802]
[1721155990903,2.88727,3463.5,3462.4,5.19895]
[1721155990904,2.88727,3463.5,3462.7,2.88791]
[1721155991304,2.88734,3463.4,3462.4,2.3108]
[1721155991509,2.88739,3463.4,3462.6,2.888]
[1721155991694,2.88739,3463.4,3462.4,5.1989]
[1721155991695,2.88739,3463.4,3462.7,2.88791]
[1721155992105,2.88739,3463.4,3462.6,2.88799]
[1721155992651,2.88688,3464.0,3463.0,2.88764]
[1721155992652,2.88705,3463.8,3463.0,2.88764]
[1721155993652,3.0,3464.1,3463.1,0.05774315]
[1721155993809,3.0,3464.3,3463.5,2.88719]
[1721155993997,0.79988285,3464.2,3463.5,2.88719]
[1721155994222,3.0,3464.2,3463.5,2.88719]
[1721155994700,3.0,3464.3,3463.5,2.88719]
[1721155995448,2.2954,3464.9,3463.9,2.8869]
[1721155995747,2.88633,3464.6,3463.9,2.8869]
[1721155996046,2.8862,3464.8,3464.0,0.05772914]
[1721155996835,3.692953,3464.8,3464.0,0.05772914]
[1721155997129,6.579193,3464.8,3464.0,0.05772914]
[1721155997322,5.88625,3464.7,3464.0,0.05772914]
[1721155997695,5.88625,3464.7,3463.9,2.8869]
[1721155997696,3.0,3464.7,3463.9,2.8869]
[1721155997946,3.0,3464.9,3464.2,2.88666]
[1721155998102,3.0,3465.0,3464.3,0.05772481]
[1721155998326,5.88605,3465.0,3464.2,3.464016]
[1721155998847,3.0,3465.0,3464.2,2.88661]
[1721155999005,3.0,3465.0,3464.3,0.05772482]
[1721155999933,3.0,3465.0,3464.4,2.88647]
[1721156000142,7.16584,3465.2,3464.4,2.88647]
[1721156000658,2.88594,3465.1,3464.4,2.88647]
[1721156000861,3.0,3465.0,3464.4,2.88647]
[1721156001351,5.88592,3465.1,3464.4,2.88647]
[1721156002370,3.0,3465.1,3464.4,2.88647]
[1721156002569,7.16583,3465.2,3464.4,2.88647]
[1721156002930,1.28,3465.2,3464.7,2.88623]
[1721156003081,2.88556,3465.6,3464.8,0.05771673]
[1721156003980,2.88556,3465.6,3464.7,2.88623]
[1721156004135,2.88559,3465.5,3464.7,2.88623]
[1721156004464,2.88559,3465.5,3464.7,3.30838925]
[1721156004833,2.88559,3465.5,3464.8,2.88616]
[1721156005143,2.88556,3465.6,3464.8,2.94387658]
[1721156005340,3.0,3465.5,3464.8,2.94387658]
[1721156005576,3.0,3465.5,3465.0,2.88597]
[1721156005727,3.0,3465.7,3465.0,2.88597]
[1721156006367,3.0,3465.7,3464.7,0.42215925]
[1721156006368,5.88544,3465.7,3464.7,0.42215925]
[1721156006583,6.762508,3465.7,3464.7,2.88624]
[1721156006907,2.88565,3465.5,3464.7,2.88624]
[1721156007109,3.0,3465.4,3464.7,2.88624]
[1721156008096,3.0,3465.4,3464.7,2.8862]
[1721156008487,3.0,3465.4,3464.5,5.14231]
[1721156008488,5.88567,3465.4,3464.5,8.02866]
[1721156008670,3.0,3465.4,3464.8,2.88616]
[1721156008916,5.88559,3465.5,3464.8,2.88616]
[1721156009200,3.0,3465.5,3464.8,2.88616]
[1721156009424,3.0,3465.6,3464.8,2.88616]
[1721156010403,5.8855,3465.6,3464.8,2.88616]
[1721156010570,2.88558,3465.5,3464.8,2.88616]
[1721156010774,3.0,3465.4,3464.8,2.88616]
[1721156011004,5.88567,3465.4,3464.6,2.88629]
[1721156011794,2.88577,3465.3,3464.4,2.88648]
[1721156011974,2.88592,3465.1,3464.4,2.88648]
[1721156012175,2.88592,3465.1,3464.5,2.8864]
[1721156013383,2.88592,3465.1,3464.4,2.88648]
[1721156014211,5.37347,3465.3,3464.4,2.88648]
[1721156014525,2.88588,3465.2,3464.5,0.577312]
[1721156014919,2.88593,3465.1,3464.5,0.577312]
[1721156016114,5.37347,3465.3,3464.5,0.577312]
[1721156016411,3.0,3465.4,3464.7,2.88618]
[1721156016799,5.88567,3465.4,3464.7,2.88618]
[1721156017240,3.0,3465.4,3464.8,2.94387686]
[1721156017444,2.88559,3465.5,3464.8,5.30167686]
[1721156017729,3.0,3465.4,3464.8,5.30167686]
[1721156018030,3.0,3465.4,3464.8,5.24396]
[1721156018727,5.88568,3465.4,3464.7,3.5211702]
[1721156018915,5.88568,3465.4,3464.5,2.8864]
[1721156019317,5.88568,3465.4,3464.7,2.88625]
[1721156021495,3.0,3465.4,3464.8,2.88616]
[1721156021943,3.0,3465.4,3464.8,2.94387703]
[1721156023510,3.0,3465.4,3464.8,2.88616]
[1721156025053,3.0,3465.4,3464.7,2.88625]
[1721156025444,5.88567,3465.4,3464.7,2.88625]
[1721156025645,6.94373761,3465.4,3464.7,2.88625]
[1721156025948,6.94373761,3465.4,3464.1,2.88671]
[1721156025949,5.33937,3465.1,3464.3,2.88653]
[1721156026766,5.33937,3465.1,3464.4,2.88646]
[1721156026912,7.58099607,3465.3,3464.4,2.88646]
[1721156027111,3.0,3465.2,3464.4,3.706119]
[1721156027326,5.88584,3465.2,3464.5,2.88641]
[1721156027555,2.88592,3465.1,3464.5,2.88641]
[1721156029962,2.88592,3465.1,3464.3,2.8865]
[1721156030164,2.88592,3465.1,3464.4,2.88643]
[1721156030459,2.88592,3465.1,3464.5,2.88641]
[1721156031849,3.0,3465.2,3464.5,2.88641]
[1721156033084,5.88583,3465.2,3464.5,2.88641]
[1721156033724,5.88583,3465.2,3464.3,3.41751]
[1721156033725,3.0,3465.2,3464.8,2.88615]
[1721156033895,3.0,3465.4,3464.8,2.88615]
[1721156035174,3.0,3465.4,3464.9,2.88608]
[1721156035474,3.0,3465.6,3464.9,2.88608]
[1721156035793,4.80999569,3465.8,3465.1,2.88586]
[1721156036356,1.80999569,3465.7,3465.1,2.88586]
[1721156036604,5.88533,3465.8,3464.9,2.88608]
[1721156036605,1.80999569,3465.6,3464.9,2.88601]
[1721156036888,1.81129766,3465.6,3465.0,2.88593]
[1721156037388,4.69687766,3465.5,3464.8,2.8861]
[1721156037592,3.0,3465.4,3464.8,2.8861]
[1721156037893,3.0,3465.4,3464.7,2.88618]
[1721156037894,3.0,3465.4,3464.9,2.88608]
[1721156038090,4.81129766,3465.6,3464.9,2.88608]
[1721156038270,1.81129766,3465.5,3464.9,2.88608]
[1721156038470,4.81129766,3465.5,3464.9,2.88608]
[1721156039374,1.81129766,3465.4,3464.9,2.88608]
[1721156039692,1.81129766,3465.3,3464.9,2.88608]
[1721156040002,3.0,3465.4,3464.9,2.88608]
[1721156040202,1.81398431,3465.3,3464.9,2.88608]
[1721156040586,1.81398431,3465.2,3464.7,2.88618]
[1721156040797,1.81398431,3465.1,3464.7,2.88618]
[1721156040999,1.81398431,3465.1,3464.3,0.53101]
[1721156041164,1.81398431,3464.9,3464.3,3.41758]
[1721156041363,1.81398431,3464.9,3464.4,2.88649]
[1721156041669,1.81398431,3464.8,3464.4,2.88649]
[1721156041869,1.81398431,3464.9,3464.4,2.88649]
[1721156042074,1.81398431,3464.9,3464.5,2.88641]
[1721156042593,1.81398431,3464.9,3464.4,0.577315]
[1721156042798,1.81398431,3464.9,3464.3,2.8865]
[1721156043420,1.81551566,3464.9,3464.3,2.8865]
[1721156043604,1.81551566,3464.9,3464.4,2.88649]
[1721156045284,1.81551566,3465.0,3464.4,2.88649]
[1721156045683,1.81551566,3464.9,3464.4,2.88649]
[1721156046014,1.81551566,3464.9,3464.4,3.463802]
[1721156046518,1.81551566,3464.8,3464.4,3.463802]
[1721156047019,1.81551566,3464.9,3464.4,3.463742]
[1721156047207,1.81551566,3464.9,3464.4,2.88643]
[1721156047406,1.81599558,3464.9,3464.4,5.77285]
[1721156047585,1.81599558,3464.9,3464.5,2.88641]
[1721156049798,1.816062,3464.9,3464.5,2.88641]
[1721156052640,1.816062,3465.0,3464.8,2.88616]
[1721156053044,5.118739,3465.4,3464.8,2.88616]
[1721156053045,3.0,3465.4,3464.8,2.88616]
[1721156053207,1.81629086,3465.1,3464.8,2.88616]
[1721156053808,1.81629086,3465.3,3465.0,2.886]
[1721156054017,2.119006,3465.5,3464.7,2.2587]
[1721156054018,1.81629086,3465.5,3465.4,2.88566]
[1721156054227,1.81629086,3465.7,3465.5,2.88556]
[1721156054469,2.88484,3466.4,3465.2,2.2632]
[1721156054470,1.81629086,3466.1,3465.9,2.88525]
[1721156054754,1.81629086,3466.3,3466.1,2.88506]
[1721156055059,1.81629086,3466.2,3465.8,2.88531]
[1721156055243,1.81629086,3466.1,3465.7,2.88539]
[1721156055539,1.81629086,3466.1,3465.8,2.88532]
[1721156055742,1.81629086,3466.2,3465.9,2.88524]
[1721156056245,1.81544027,3466.2,3465.9,2.88524]
[1721156056433,5.00278365,3466.5,3465.9,2.88524]
[1721156056434,1.81544027,3466.3,3465.9,2.88524]
[1721156056840,1.81544027,3466.3,3465.9,3.462303]
[1721156057045,1.81544027,3466.4,3465.9,3.462303]
[1721156057340,1.81544027,3466.4,3465.9,0.577063]
[1721156058351,4.70021027,3466.5,3465.9,0.577063]
[1721156058532,4.70021027,3466.5,3465.8,2.88533]
[1721156058771,1.81544027,3466.4,3465.8,2.88533]
[1721156059361,2.88477,3466.5,3465.8,2.88533]
[1721156059658,4.69806942,3466.5,3465.8,2.88533]
[1721156059954,3.0,3466.9,3465.8,2.88533]
[1721156059955,4.69797942,3466.6,3465.8,2.88533]
[1721156060171,4.69797942,3466.6,3465.8,3.52011135]
[1721156060376,4.69797942,3466.6,3465.8,6.40538135]
[1721156060524,2.88468,3466.6,3465.8,6.347682]
[1721156060861,4.69797942,3466.6,3465.8,6.347682]
[1721156061040,2.88468,3466.6,3465.8,6.347682]
[1721156061234,2.88468,3466.6,3465.9,2.88524]
[1721156062603,3.0,3466.9,3466.4,2.88481]
[1721156062862,2.88433,3467.0,3466.2,2.88492]
[1721156062863,5.88433,3467.0,3466.3,2.88486]
[1721156063969,2.88443,3466.9,3466.2,2.88494]
[1721156064131,4.69642001,3466.9,3466.2,2.88494]
[1721156064340,2.88443,3466.9,3466.2,2.88494]
[1721156064666,2.88443,3466.9,3466.0,2.88516]
[1721156064667,2.88443,3466.9,3466.1,2.88507]
[1721156065659,2.88443,3466.9,3466.2,2.88498]
[1721156065874,2.88443,3466.9,3466.2,5.7699]
[1721156066322,2.88443,3466.9,3466.3,2.88491]
[1721156067440,5.88435,3467.0,3466.3,2.88491]
[1721156067635,5.88435,3467.0,3466.3,3.55012229]
[1721156071065,2.88442,3466.9,3466.3,0.66521229]
[1721156071264,2.88442,3466.9,3466.1,3.76731292]
[1721156071463,2.88442,3466.9,3466.2,2.88498]
[1721156072053,5.88435,3467.0,3466.2,2.88498]
[1721156072287,5.88435,3467.0,3466.1,3.76730292]
[1721156072433,2.88443,3466.9,3466.2,2.88498]
[1721156072634,2.88443,3466.9,3466.2,3.56698321]
[1721156073076,2.88443,3466.9,3466.3,2.88491]
[1721156077103,3.0,3467.0,3466.3,2.88491]
[1721156077956,3.0,3467.0,3466.5,2.88473]
[1721156078149,3.0,3467.2,3466.5,3.52989432]
[1721156078399,4.69208612,3467.6,3466.7,2.88454]
[1721156078584,6.4971,3468.0,3467.2,2.88414]
[1721156078762,4.00236861,3468.0,3467.2,2.88414]
[1721156079097,1.80855386,3468.3,3467.2,2.88411]
[1721156079249,7.02540386,3468.4,3467.1,2.3223]
[1721156079457,7.02540386,3468.4,3467.6,2.88383]
[1721156079680,2.3336,3468.4,3467.6,0.05767265]
[1721156079893,2.88314,3468.5,3467.7,2.88369]
[1721156080063,1.80855386,3468.7,3467.7,2.88369]
[1721156080393,2.883,3468.7,3467.9,2.88352]
[1721156081491,2.883,3468.7,3468.0,2.88349]
[1721156081666,2.883,3468.6,3467.9,5.16233]
[1721156082866,2.883,3468.6,3467.9,2.88353]
[1721156083098,2.88309,3468.5,3467.7,2.88368]
[1721156083308,2.88317,3468.4,3467.5,5.18867]
[1721156083462,2.88343,3468.1,3467.2,2.88412]
[1721156083665,2.88343,3468.1,3467.3,2.88408]
[1721156084017,6.260194,3468.3,3466.8,1.04711643]
[1721156084018,3.0,3468.0,3466.8,1.04711643]
[1721156084300,3.0,3468.0,3466.8,2.88448]
[1721156084301,2.88389,3467.6,3466.8,2.88448]
[1721156084501,2.88401,3467.4,3466.4,2.88481]
[1721156084810,2.88401,3467.4,3466.5,3.52990432]
[1721156084811,2.88422,3467.2,3466.5,3.52990432]
[1721156085176,2.4613,3467.8,3466.5,3.52990432]
[1721156085177,2.88387,3467.6,3466.5,3.52990432]
[1721156085375,2.88402,3467.4,3466.6,0.64147943]
[1721156085680,2.88387,3467.6,3466.9,2.88437]
[1721156086695,2.88369,3467.8,3466.9,2.88437]
[1721156086899,3.0,3467.7,3467.1,2.88424]
[1721156087113,3.0,3467.9,3467.1,2.88424]
[1721156087417,3.0,3467.9,3467.1,3.461101]
[1721156087702,5.88363,3467.9,3467.1,3.461101]
[1721156089233,3.0,3467.9,3467.3,2.88406]
[1721156089535,2.88344,3468.1,3467.2,5.23422]
[1721156089536,5.88357,3468.0,3467.2,5.23422]
[1721156089744,3.0,3468.0,3467.4,2.88399]
[1721156090039,2.88351,3468.0,3467.3,0.8695291]
[1721156090213,3.0,3467.9,3467.3,3.7535691]
[1721156091697,3.0,3467.9,3467.4,0.95647401]
[1721156097046,3.0,3467.9,3467.2,2.3501]
[1721156097250,3.0,3467.9,3466.3,2.456]
[1721156097251,2.8837,3467.8,3467.0,2.88432]
[1721156097401,2.8837,3467.8,3467.1,2.88424]
[1721156097602,3.0,3467.7,3467.1,2.88422]
[1721156098037,3.0,3467.7,3467.2,2.88417]
[1721156098541,3.0,3467.9,3467.2,2.88417]
[1721156099052,5.88365,3467.9,3467.1,3.693674]
[1721156099414,3.0,3467.9,3467.3,2.88404]
[1721156099637,5.88356,3468.0,3467.3,2.88404]
[1721156100335,5.88356,3468.0,3467.3,3.7913914]
[1721156100543,3.0,3468.0,3467.3,3.7913914]
[1721156100703,3.0,3468.1,3467.5,2.88391]
[1721156100905,2.88326,3468.3,3467.5,2.88391]
[1721156101146,3.0,3468.2,3467.5,3.80102014]
[1721156101599,2.8828,3468.9,3467.5,0.91711014]
[1721156101810,2.8828,3468.9,3468.0,2.88344]
[1721156102075,2.8828,3468.9,3468.1,2.8834]
[1721156102205,2.8826,3469.1,3468.2,0.05766277]
[1721156102549,2.88251,3469.2,3468.3,3.17730628]
[1721156102704,2.88251,3469.2,3468.4,2.88315]
[1721156103304,2.88251,3469.2,3468.4,2.94080742]
[1721156103830,1.27,3469.4,3468.3,3.17730628]
[1721156103831,2.88259,3469.1,3468.3,3.17730628]
[1721156104037,5.88273,3469.0,3468.2,2.88333]
[1721156104248,3.0,3469.0,3468.6,2.88297]
[1721156104559,2.88231,3469.5,3468.6,2.88294]
[1721156104861,2.88273,3469.0,3468.0,2.88345]
[1721156105162,2.88273,3469.0,3467.9,2.3105]
[1721156105163,2.88273,3469.0,3468.1,2.88341]
[1721156105365,2.88273,3469.0,3468.2,2.88332]
[1721156105851,2.88259,3469.2,3468.3,2.88324]
[1721156106009,3.0,3469.1,3468.2,0.807732]
[1721156106208,4.16299709,3469.7,3468.0,3.042]
[1721156106408,4.16299709,3469.7,3468.1,0.55]
[1721156106620,2.88219,3469.6,3468.6,2.88299]
[1721156106864,5.88226,3469.5,3468.7,2.88291]
[1721156107058,3.0,3469.4,3468.8,0.05765139]
[1721156107629,2.88185,3470.0,3469.1,2.88258]
[1721156108115,2.88185,3470.0,3469.1,2.94022455]
[1721156108665,2.88195,3469.9,3469.1,2.88258]
[1721156108827,2.88202,3469.8,3469.1,2.88258]
[1721156109136,3.0,3469.7,3469.1,2.88258]
[1721156110353,3.0,3469.7,3469.1,3.53176398]
[1721156111305,2.88226,3469.5,3468.8,0.72652985]
[1721156111513,2.88234,3469.4,3468.6,5.18094]
[1721156111759,2.88252,3469.2,3468.3,2.88322]
[1721156112055,2.88252,3469.2,3468.2,2.3055]
[1721156112616,2.88252,3469.2,3468.5,2.88301]
[1721156113755,2.88273,3469.0,3468.1,2.88336]
[1721156114250,2.88294,3468.7,3468.0,2.88343]
[1721156114557,2.88271,3469.0,3468.0,2.88343]
[1721156114785,2.88271,3469.0,3468.1,2.88342]
[1721156114933,3.0,3469.1,3467.8,2.3346]
[1721156114934,5.88266,3469.1,3468.3,2.88325]
[1721156116010,2.88269,3469.0,3468.3,2.88325]
[1721156116311,2.88276,3468.9,3468.2,2.88328]
[1721156116728,2.88276,3468.9,3468.0,2.88348]
[1721156117114,2.88284,3468.8,3468.0,2.88348]
[1721156117312,2.88284,3468.8,3468.0,3.997851]
[1721156117768,2.88284,3468.8,3468.1,2.8834]
[1721156118468,2.88276,3468.9,3468.2,2.8833]
[1721156118821,2.88284,3468.8,3468.0,1.114371]
[1721156119026,2.88284,3468.8,3467.9,2.88355]
[1721156119958,2.88284,3468.8,3468.1,2.88337]
[1721156120560,2.88284,3468.8,3468.2,2.88333]
[1721156120770,3.0,3469.1,3468.2,2.88333]
[1721156120771,5.88264,3469.1,3468.2,2.88333]
[1721156121072,2.88268,3469.0,3468.2,2.88333]
[1721156121358,5.88259,3469.1,3468.3,3.45991]
[1721156121675,3.0,3469.1,3468.5,2.88308]
[1721156121862,3.0,3469.2,3468.5,5.25368]
[1721156122207,3.0,3469.2,3468.6,2.883]
[1721156122416,3.0,3469.2,3468.7,0.813668]
[1721156122745,3.0,3469.3,3468.7,0.813668]
[1721156122982,5.88243,3469.3,3468.6,2.883]
[1721156125043,3.0,3469.3,3468.6,2.883]
[1721156125246,2.88247,3469.3,3468.6,2.883]
[1721156125479,3.0,3469.2,3468.6,2.883]
[1721156128908,5.88251,3469.2,3468.6,2.883]
[1721156130916,3.0,3469.2,3468.6,2.883]
[1721156131275,3.0,3469.2,3468.5,5.25364]
[1721156132205,3.0,3469.2,3468.6,2.88298]
[1721156133012,4.05764542,3469.2,3468.2,2.88329]
[1721156133305,2.88276,3468.9,3468.2,2.88329]
[1721156134083,2.88285,3468.8,3468.1,2.2641]
[1721156135293,2.88285,3468.8,3468.2,2.88332]
[1721156135739,1.81217177,3469.0,3468.2,2.88332]
[1721156136027,3.0,3469.0,3468.2,3.686409]
[1721156136520,2.88276,3468.9,3468.2,3.686409]
[1721156136671,3.0,3469.0,3468.3,0.55]
[1721156136872,3.0,3469.2,3468.5,2.88301]
[1721156137678,3.0,3469.2,3468.6,2.883]
[1721156137977,5.88251,3469.2,3468.7,0.576614]
[1721156138200,5.88251,3469.2,3468.6,2.883]
[1721156138201,7.69476463,3469.2,3468.6,2.883]
[1721156138798,5.88251,3469.2,3468.6,2.883]
[1721156139000,3.0,3469.2,3468.6,2.883]
[1721156139209,4.81225463,3469.3,3468.6,2.883]
[1721156140019,3.0,3469.3,3468.7,2.2966]
[1721156140324,1.81225463,3469.4,3468.8,0.51796]
[1721156140527,1.81269727,3469.4,3468.8,0.51796]
[1721156140882,1.81269727,3469.5,3468.8,0.51796]
[1721156141128,4.69481727,3469.7,3468.9,0.05764681]
[1721156141312,4.69481727,3469.7,3468.8,3.40077]
[1721156141313,1.81269727,3469.8,3469.1,2.88259]
[1721156141502,1.81269727,3469.8,3469.2,2.3041]
[1721156141831,4.69453727,3470.0,3469.2,2.3041]
[1721156142128,1.81269727,3469.9,3469.2,2.3041]
[1721156142324,4.69453727,3470.0,3469.2,2.3041]
[1721156142527,4.69453727,3470.0,3469.3,0.86447817]
[1721156142528,1.81269727,3469.9,3469.3,0.86447817]
[1721156142703,1.81269727,3469.9,3469.3,0.92211749]
[1721156142912,4.69463727,3469.9,3469.3,0.92211749]
[1721156143104,7.69463727,3469.9,3469.3,0.86447817]
[1721156143627,10.57663727,3469.9,3469.3,0.86447817]
[1721156143816,10.57694853,3469.9,3469.3,0.86447817]
[1721156144324,10.57694853,3469.9,3469.4,0.60510682]
[1721156144828,2.8821,3469.7,3469.3,0.86447817]
[1721156145033,2.8821,3469.7,3469.2,2.3041]
[1721156145034,4.69510853,3469.7,3469.2,2.3041]
[1721156145191,2.8821,3469.7,3469.2,2.3041]
[1721156145392,4.69510853,3469.7,3469.2,2.3041]
[1721156145599,2.8821,3469.7,3469.2,2.3041]
[1721156149606,1.81421716,3469.8,3469.2,2.3041]
[1721156149607,2.88218,3469.6,3469.2,2.3041]
[1721156151766,1.81418829,3469.5,3468.2,9.7771]
[1721156152039,2.883,3468.6,3468.2,2.4071]
[1721156152213,2.88293,3468.7,3467.3,7.37]
[1721156152214,2.8831,3468.5,3467.8,2.3697]
[1721156152419,2.8831,3468.5,3467.9,0.23697]
[1721156152420,2.88326,3468.3,3467.9,0.23697]
[1721156152614,2.88326,3468.3,3467.3,10.25401]
[1721156152615,2.88326,3468.3,3467.4,2.4968]
[1721156153006,2.88339,3468.2,3467.4,2.4968]
[1721156153214,2.88339,3468.2,3467.4,5.38079]
[1721156153447,2.88343,3468.1,3467.4,5.38079]
[1721156153594,2.88343,3468.1,3467.5,0.842279]
[1721156155119,2.88356,3468.0,3467.5,0.842279]
[1721156155311,2.88359,3467.9,3467.4,2.4968]
[1721156157327,2.88343,3468.1,3467.4,2.4968]
[1721156157636,2.88334,3468.2,3467.4,2.4968]
[1721156159046,2.88326,3468.3,3467.4,2.4968]
[1721156159205,2.88326,3468.3,3467.5,2.88392]
[1721156159543,2.88336,3468.2,3467.6,0.826479]
[1721156159747,2.88309,3468.5,3467.7,2.88373]
[1721156160051,2.88323,3468.4,3467.7,3.43373]
[1721156160338,4.6974423,3468.5,3467.7,3.43373]
[1721156160502,2.88317,3468.4,3467.8,1.0186129]
[1721156161539,2.88325,3468.3,3467.8,1.0186129]
[1721156161712,2.88325,3468.3,3467.7,0.55]
[1721156161900,2.88325,3468.3,3467.6,0.55]
[1721156162357,2.88325,3468.3,3467.5,2.8839]
[1721156162358,2.88352,3468.0,3467.4,2.4968]
[1721156162856,2.88359,3467.9,3467.4,2.4968]
[1721156163569,2.88371,3467.8,3467.4,2.4968]
[1721156163919,2.88371,3467.8,3467.4,2.74648]
[1721156165860,2.8838,3467.7,3467.0,2.3954]
[1721156166092,2.8838,3467.7,3467.0,5.3954]
[1721156166587,2.88371,3467.8,3467.0,2.3954]
[1721156166588,2.88384,3467.6,3467.0,2.3954]
[1721156166741,5.76776,3467.6,3467.0,2.3954]
[1721156167074,5.76776,3467.6,3467.0,2.92339]
[1721156167524,2.88409,3467.3,3466.6,5.29133]
[1721156167655,2.88422,3467.2,3466.6,2.4067]
[1721156167857,2.88427,3467.1,3466.6,2.4067]
[1721156168054,1.81220761,3467.6,3466.3,2.2867]
[1721156168318,2.88461,3466.7,3466.3,2.2867]
[1721156168516,2.88461,3466.7,3465.9,2.2867]
[1721156168820,2.88468,3466.6,3466.0,0.5172]
[1721156169354,2.88461,3466.7,3466.0,0.5172]
[1721156169355,2.88477,3466.5,3466.0,0.5172]
[1721156169600,2.88477,3466.5,3465.9,2.2867]
[1721156169781,2.88484,3466.4,3465.9,2.2867]
[1721156170172,2.88472,3466.6,3465.9,2.2867]
[1721156170982,2.88445,3466.9,3465.9,5.17192]
[1721156171471,2.88467,3466.6,3465.9,5.17192]
[1721156171688,2.88451,3466.8,3466.0,0.805724]
[1721156171887,2.88436,3467.0,3466.0,3.690864]
[1721156172091,2.88422,3467.2,3466.2,2.88493]
[1721156172266,5.8843,3467.1,3466.3,2.88491]
[1721156173006,3.0,3467.1,3466.4,5.1895]
[1721156173293,5.88427,3467.1,3466.5,0.807443]
[1721156173492,2.88446,3466.9,3466.4,2.3047]
[1721156176379,5.88426,3467.1,3466.4,2.3047]
[1721156176591,2.88435,3467.0,3466.4,2.3047]
[1721156178095,3.0,3467.1,3466.4,2.3047]
[1721156178306,2.88403,3467.4,3466.5,3.43473]
[1721156178505,2.8837,3467.8,3466.7,2.4018]
[1721156178823,2.88359,3467.9,3467.1,2.88425]
[1721156179183,2.88352,3468.0,3467.2,2.4889]
[1721156179414,2.88352,3468.0,3467.3,2.88406]
[1721156179619,2.88352,3468.0,3467.4,0.825721]
[1721156182000,2.88335,3468.2,3467.4,3.709711]
[1721156182208,3.0,3468.1,3467.4,3.709711]
[1721156182886,2.88318,3468.4,3467.5,0.55]
[1721156183063,2.88261,3469.1,3468.3,2.88324]
[1721156183263,8.40783783,3469.6,3468.4,0.288324]
[1721156183264,2.88267,3469.0,3468.4,0.288324]
[1721156183558,2.88267,3469.0,3468.3,2.88324]
[1721156183926,2.88256,3469.2,3468.3,2.88324]
[1721156184091,2.88261,3469.1,3468.3,2.88324]
[1721156184320,2.88243,3469.3,3468.4,0.05765518]
[1721156184518,2.88243,3469.3,3468.5,2.4889]
[1721156184957,2.88243,3469.3,3468.5,5.37197]
[1721156185324,3.0,3469.2,3468.5,5.37197]
[1721156186536,5.88252,3469.2,3468.5,5.37197]
[1721156186690,6.62971138,3469.2,3468.5,2.4889]
[1721156187240,2.8826,3469.1,3468.5,2.4889]
[1721156187392,3.0,3469.0,3468.5,2.4889]
[1721156190626,3.0,3469.0,3468.5,5.37198]
[1721156190994,2.88218,3469.6,3468.6,2.94064347]
[1721156191197,2.88183,3470.1,3469.2,2.88245]
[1721156191325,2.88184,3470.0,3469.3,0.05764071]
[1721156191526,3.40335,3470.3,3469.3,0.05764071]
[1721156191833,3.40335,3470.3,3469.4,2.88233]
[1721156191834,2.88168,3470.2,3469.4,2.88233]
[1721156192036,2.88176,3470.1,3469.5,0.05763872]
[1721156192567,2.88165,3470.3,3469.5,2.93987872]
[1721156192878,2.88157,3470.4,3469.5,2.93987872]
[1721156193076,2.88157,3470.4,3469.5,3.46446087]
[1721156193789,2.8816,3470.3,3469.5,3.46446087]
[1721156194137,2.88169,3470.2,3469.5,0.58222087]
[1721156194339,2.88176,3470.1,3469.3,2.88236]
[1721156194536,2.88176,3470.1,3469.4,2.88232]
[1721156195381,2.88176,3470.1,3469.5,2.88224]
[1721156196391,2.88175,3470.2,3469.3,2.88234]
[1721156196671,0.288175,3470.1,3469.3,2.8824]